bitfinex-derivatives/quotes_ETHF0:USTF0_20250730
["timestamp","ask_amount","ask_price","bid_price","bid_amount"]
[1753911861844,3.7007,3743.8,3743.7,2.9485]
[1753911862145,3.7007,3743.8,3743.7,21.5615]
[1753911862744,3.7007,3743.8,3743.7,21.5605]
[1753911863446,3.7007,3743.8,3743.7,22.2066]
[1753911863638,3.7007,3743.8,3743.7,3.5946]
[1753911863841,3.7007,3743.8,3743.7,22.2056]
[1753911864241,0.53423,3743.9,3743.8,3.5946]
[1753911865043,1.19243,3743.9,3743.8,3.5946]
[1753911865245,1.65013,3743.9,3743.8,3.5946]
[1753911865445,2.56413,3743.9,3743.8,3.5946]
[1753911865841,3.2078,3744.7,3743.8,4.78937118]
[1753911866043,0.53413,3744.6,3744.5,2.9485]
[1753911866246,1.19233,3744.6,3744.5,21.5575]
[1753911866444,0.5341,3744.8,3744.6,2.17392]
[1753911866649,0.5341,3744.8,3744.7,22.2036]
[1753911866942,1.1923,3744.8,3744.7,3.5946]
[1753911867141,1.65,3744.8,3744.7,22.2036]
[1753911867355,3.8197,3744.8,3744.7,22.2036]
[1753911867756,4.2348,3744.8,3744.7,22.2036]
[1753911868659,4.2348,3744.8,3744.7,3.5946]
[1753911870663,4.2348,3744.8,3744.7,2.9485]
[1753911872664,4.12382,3744.6,3744.5,20.5633]
[1753911872964,4.12382,3744.6,3744.5,22.2545]
[1753911874462,4.12382,3744.6,3744.5,21.5864]
[1753911874662,2.64962,3744.6,3744.5,22.2545]
[1753911874862,4.12382,3744.6,3744.5,24.7942]
[1753911875069,4.12382,3744.6,3744.5,6.1912]
[1753911875667,4.12382,3744.6,3744.5,2.9834]
[1753911875867,4.12382,3744.6,3744.5,3.6515]
[1753911876263,4.12382,3744.6,3744.5,2.9834]
[1753911876972,4.12382,3744.6,3744.5,6.1912]
[1753911877265,4.12382,3744.6,3744.5,2.9834]
[1753911877466,4.12382,3744.6,3744.5,6.1912]
[1753911877872,4.12382,3744.6,3744.5,2.9834]
[1753911878167,2.64962,3744.6,3744.5,3.6515]
[1753911878368,2.64962,3744.6,3744.5,6.8593]
[1753911879167,0.53412,3744.6,3744.5,3.6515]
[1753911879373,0.53412,3744.6,3744.5,6.8593]
[1753911879572,1.20382,3744.6,3744.5,3.6515]
[1753911879876,1.63992,3744.6,3744.5,3.6515]
[1753911880069,2.22482,3744.6,3744.5,22.2475]
[1753911880470,4.12382,3744.6,3744.5,22.2475]
[1753911880869,4.12382,3744.6,3744.5,3.2078]
[1753911881077,1.1058,3744.3,3744.2,3.6515]
[1753911881375,1.1058,3744.3,3744.2,25.4543]
[1753911883064,0.53416,3744.4,3744.2,25.4543]
[1753911883269,2.22483,3744.6,3744.5,3.6515]
[1753911883574,2.22483,3744.6,3744.5,22.2445]
[1753911883776,3.5897,3744.6,3744.5,22.2445]
[1753911883973,3.5897,3744.6,3744.5,1.6776]
[1753911884268,3.5897,3744.6,3744.5,21.5754]
[1753911886770,3.5897,3744.6,3744.5,2.9834]
[1753911886972,3.5897,3744.6,3744.5,21.5734]
[1753911887569,2.7609,3744.6,3744.5,21.5734]
[1753911887966,3.5897,3744.6,3744.5,21.5734]
[1753911890681,3.5897,3744.6,3744.5,22.2415]
[1753911891484,3.5897,3744.6,3744.5,3.6515]
[1753911891685,3.5897,3744.6,3744.5,22.2375]
[1753911892182,3.5897,3744.6,3744.5,3.6515]
[1753911892385,3.5897,3744.6,3744.5,22.2375]
[1753911892581,3.5897,3744.6,3744.5,2.9834]
[1753911892782,3.5897,3744.6,3744.5,21.5694]
[1753911893386,3.5897,3744.6,3744.5,22.2375]
[1753911897980,3.5897,3744.6,3744.5,25.4453]
[1753911898581,3.5897,3744.6,3744.5,25.4393]
[1753911898986,3.5897,3744.6,3744.5,22.2315]
[1753911899289,3.5897,3744.6,3744.5,25.4393]
[1753911900685,3.2078,3745.4,3744.5,21.7878]
[1753911900886,3.2078,3745.9,3745.3,2.104]
[1753911901079,4.14997756,3746.8,3746.6,1.4166]
[1753911901284,1.28018802,3746.7,3746.6,3.5206]
[1753911901485,1.12859897,3746.7,3746.6,6.7284]
[1753911903786,0.38,3746.7,3746.6,6.7284]
[1753911905385,0.38,3746.7,3746.6,24.6829]
[1753911905581,4.2347,3747.2,3747.1,3.5206]
[1753911905787,1.0269,3747.2,3747.1,22.0916]
[1753911906287,3.74148,3747.7,3747.2,0.53375]
[1753911906593,1.397,3747.7,3747.6,2.9041]
[1753911906988,3.4925,3747.7,3747.6,2.9041]
[1753911907183,0.4284,3747.7,3747.6,1.4166]
[1753911907390,3.4925,3747.7,3747.6,3.5206]
[1753911907792,3.4925,3747.7,3747.6,2.9041]
[1753911908193,4.02618,3747.7,3747.6,2.9041]
[1753911909395,1.97548,3747.7,3747.6,2.9041]
[1753911909590,1.97548,3747.7,3747.6,3.5206]
[1753911909787,4.02618,3747.7,3747.6,3.5206]
[1753911911695,3.4925,3747.7,3747.6,6.7284]
[1753911911885,0.5985,3747.7,3747.6,6.7284]
[1753911913595,0.53366,3747.9,3747.8,3.5206]
[1753911913797,1.13216,3747.9,3747.8,22.0826]
[1753911914195,4.40257118,3748.7,3747.9,0.6335]
[1753911914393,3.4925,3748.4,3748.3,2.9041]
[1753911915195,2.62908,3748.4,3748.3,3.5206]
[1753911915400,4.02608,3748.4,3748.3,3.5206]
[1753911916095,0.53358,3748.4,3748.3,2.9041]
[1753911916300,3.4925,3748.3,3748.2,19.1915]
[1753911916497,3.4925,3748.3,3748.2,18.558]
[1753911917302,3.4925,3748.3,3748.2,21.4621]
[1753911918000,3.4925,3748.3,3748.0,3.2078]
[1753911918197,3.4925,3748.1,3748.0,3.2078]
[1753911918402,1.19477118,3748.3,3747.3,1.19477118]
[1753911918403,3.4925,3747.8,3747.7,0.53367]
[1753911918599,3.4925,3747.8,3747.7,19.08767]
[1753911918997,1.0269,3747.8,3747.7,21.99177]
[1753911919202,3.4925,3747.8,3747.7,19.08567]
[1753911919403,3.4925,3747.8,3747.7,21.4561]
[1753911920000,0.53364,3748.0,3747.8,0.53366]
[1753911920207,2.894,3748.0,3747.9,2.9041]
[1753911920706,3.4925,3748.0,3747.9,2.9041]
[1753911921302,3.4925,3748.0,3747.9,21.4541]
[1753911921901,3.4925,3748.0,3747.9,22.0706]
[1753911922101,3.4925,3748.0,3747.9,21.4541]
[1753911922300,3.4925,3748.0,3747.8,0.53366]
[1753911922501,3.4925,3747.9,3747.8,1.95026]
[1753911922810,3.4925,3747.9,3747.8,21.11676]
[1753911923003,3.4925,3747.9,3747.8,21.97076]
[1753911923206,3.4925,3747.9,3747.8,22.60426]
[1753911923815,3.4925,3747.9,3747.8,25.81206]
[1753911926316,3.4925,3748.3,3748.2,1.1065]
[1753911926516,3.4925,3748.3,3748.2,6.2202]
[1753911927419,3.4925,3748.3,3748.2,6.6455]
[1753911927622,0.93915364,3750.1,3750.0,0.8437]
[1753911927914,3.4925,3750.1,3750.0,3.2078]
[1753911928121,9.68727118,3750.1,3750.0,1.8788]
[1753911928315,8.72290236,3750.1,3748.7,0.53354]
[1753911928516,0.53349,3749.1,3748.6,4.35785]
[1753911928715,1.4132,3748.7,3748.6,4.35785]
[1753911929725,2.13104,3748.7,3748.6,0.6165]
[1753911930414,2.13104,3748.7,3748.4,19.407]
[1753911930712,3.2078,3749.5,3748.6,1.19477118]
[1753911931010,3.2078,3749.5,3748.4,18.553]
[1753911931011,4.97013,3749.5,3749.4,1.5707]
[1753911931323,4.97013,3749.5,3749.4,3.9617]
[1753911931522,5.15443,3749.5,3749.4,3.9617]
[1753911932113,1.94663,3749.5,3749.4,3.9617]
[1753911932313,0.2458,3750.2,3749.5,3.9617]
[1753911932515,0.53338,3749.8,3749.7,3.2401]
[1753911932715,1.01258,3749.8,3749.7,3.9617]
[1753911932915,0.4792,3749.8,3749.7,3.9617]
[1753911933320,1.1674,3749.8,3749.7,3.9617]
[1753911933517,0.53342,3749.5,3749.2,3.2078]
[1753911933722,0.9831,3749.3,3749.1,19.81977118]
[1753911933920,1.1674,3749.2,3749.1,23.06147118]
[1753911934320,1.1674,3749.2,3749.1,23.78147118]
[1753911934522,0.1843,3749.4,3749.2,0.53347]
[1753911934722,0.53342,3749.5,3749.4,3.2401]
[1753911935025,0.53342,3749.5,3749.4,3.9617]
[1753911935026,1.94662,3749.5,3749.4,3.9617]
[1753911935625,1.94662,3749.5,3749.4,0.72]
[1753911935820,2.13092,3749.5,3749.4,0.72]
[1753911936021,0.53342,3749.5,3749.4,3.9617]
[1753911936227,1.94662,3749.5,3749.4,3.9617]
[1753911936419,0.53342,3749.5,3749.4,5.15647118]
[1753911936616,0.53342,3749.5,3749.4,3.2401]
[1753911936822,1.94662,3749.5,3749.4,21.8581]
[1753911937027,1.94662,3749.5,3749.4,3.2401]
[1753911938026,1.94662,3749.5,3749.4,3.9617]
[1753911939923,2.13092,3749.5,3749.4,0.72]
[1753911940317,1.94662,3749.5,3749.4,1.6694]
[1753911940523,1.94662,3749.5,3749.4,3.9617]
[1753911944233,0.53349,3749.0,3748.9,18.577]
[1753911944426,1.94669,3749.0,3748.9,19.297]
[1753911944627,1.94669,3749.0,3748.9,22.5387]
[1753911945032,0.53349,3749.0,3748.9,22.5387]
[1753911945635,1.01269,3749.1,3749.0,3.9617]
[1753911945836,1.94669,3749.1,3749.0,0.72]
[1753911946129,1.46752,3748.8,3748.7,0.72]
[1753911946334,1.4132,3748.7,3748.6,3.2078]
[1753911946523,1.4132,3748.7,3748.6,3.9278]
[1753911947330,1.5819,3748.7,3748.6,3.9278]
[1753911947731,1.5819,3748.7,3748.6,3.2078]
[1753911948931,0.6298,3748.5,3748.4,1.19477118]
[1753911949239,1.4619,3748.5,3748.4,1.91477118]
[1753911949434,1.2932,3748.5,3748.4,3.59087118]
[1753911949635,1.2932,3748.5,3748.4,5.15647118]
[1753911951740,1.2932,3748.5,3748.4,3.9617]
[1753911953633,0.70215,3748.6,3748.5,3.9617]
[1753911954033,0.53355,3748.6,3748.5,3.9617]
[1753911954434,0.97205,3748.6,3748.5,3.9617]
[1753911954633,1.60175,3748.6,3748.5,3.9617]
[1753911955736,0.53359,3748.3,3748.2,3.2078]
[1753911956034,0.53359,3748.3,3748.2,8.36427118]
[1753911956233,0.53359,3748.4,3748.2,5.97327118]
[1753911956435,0.53359,3748.4,3748.3,3.9617]
[1753911956640,0.53359,3748.4,3748.3,0.72]
[1753911956833,0.97209,3748.4,3748.3,3.9617]
[1753911957035,0.53359,3748.4,3748.3,3.9617]
[1753911959536,1.53639,3748.4,3748.3,1.7009]
[1753911959741,1.74759,3748.4,3748.3,3.9468]
[1753911959935,1.53639,3748.4,3748.3,3.9468]
[1753911960142,0.53359,3748.4,3748.3,3.9468]
[1753911960532,1.37809,3748.4,3748.3,1.6557]
[1753911960733,1.37809,3748.4,3748.3,3.9016]
[1753911961232,0.53359,3748.4,3748.3,3.9016]
[1753911970945,0.69189,3748.4,3748.3,3.9016]
[1753911974244,0.53359,3748.4,3748.3,3.2198]
[1753911974440,0.53359,3748.4,3748.3,3.9016]
[1753911974638,0.94519,3748.4,3748.3,3.9016]
[1753911975546,1.74759,3748.4,3748.3,3.9016]
[1753911975740,0.53359,3748.4,3748.3,3.9016]
[1753911978446,1.53639,3748.4,3748.3,3.2198]
[1753911978647,1.53639,3748.4,3748.3,3.9016]
[1753911978851,1.74759,3748.4,3748.3,3.9016]
[1753911979148,1.53639,3748.4,3748.3,3.9016]
[1753911980048,0.69189,3748.4,3748.3,3.9016]
[1753911980445,0.53357,3748.5,3748.4,0.98958]
[1753911980653,0.69187,3748.5,3748.4,4.43518]
[1753911981051,0.53357,3748.5,3748.4,4.43518]
[1753911981548,0.53356,3748.6,3748.5,3.4536]
[1753911981747,0.53356,3748.6,3748.5,3.9016]
[1753911981947,0.69186,3748.6,3748.5,3.9016]
[1753911983554,0.94516,3748.6,3748.5,3.9016]
[1753911983754,0.53356,3748.6,3748.5,3.9016]
[1753911984356,0.69186,3748.6,3748.5,3.9016]
[1753911984550,0.53356,3748.6,3748.5,3.9016]
[1753911986453,0.69186,3748.6,3748.5,3.9016]
[1753911987350,0.53352,3748.9,3748.8,1.5641]
[1753911987554,0.69182,3748.9,3748.8,3.9016]
[1753911987751,0.53352,3748.9,3748.8,3.9016]
[1753911987947,0.5335,3749.0,3748.9,3.76031]
[1753911988153,0.5335,3749.0,3748.9,4.43511]
[1753911988353,4.58572,3749.5,3749.4,1.5641]
[1753911988551,3.2078,3749.9,3749.4,1.86957118]
[1753911988853,0.53336,3750.0,3749.8,3.8105]
[1753911989056,0.53336,3750.0,3749.9,3.8105]
[1753911989560,0.53328,3750.5,3750.4,3.8105]
[1753911989757,3.74107,3750.6,3750.4,1.5268]
[1753911989963,3.74107,3750.6,3750.5,3.8105]
[1753911992958,3.87377,3750.6,3750.5,3.8105]
[1753911993154,4.08627,3750.6,3750.5,3.8105]
[1753911994658,4.26337,3750.6,3750.5,3.8105]
[1753911994858,4.08627,3750.6,3750.5,3.8105]
[1753911995062,0.53326,3750.7,3750.5,3.8105]
[1753911995360,0.53326,3750.7,3750.6,3.8105]
[1753911995560,0.1327,3750.7,3750.6,3.8105]
[1753911996068,0.53325,3750.8,3750.6,1.5268]
[1753911996363,1.55135,3750.8,3750.7,3.8105]
[1753911997866,1.37425,3750.8,3750.7,3.8105]
[1753911998263,1.55135,3750.8,3750.7,3.8105]
[1753911998459,21.06560118,3751.6,3750.7,3.8105]
[1753911998460,0.66583,3751.6,3751.4,0.6691]
[1753911998657,0.3098,3751.6,3751.5,2.9236]
[1753911998858,0.5223,3751.6,3751.5,3.8105]
[1753911999367,0.1327,3751.6,3751.5,3.8105]
[1753911999766,0.53309,3751.8,3751.7,3.8105]
[1753911999965,0.66579,3751.8,3751.7,3.8105]
[1753912001165,0.53309,3751.8,3751.7,3.8105]
[1753912002165,1.55119,3751.8,3751.7,3.8105]
[1753912002960,1.37409,3751.8,3751.7,3.8105]
[1753912003168,0.53308,3751.9,3751.7,3.8105]
[1753912003363,0.53308,3751.9,3751.8,3.8105]
[1753912003559,0.53306,3752.0,3751.8,3.8105]
[1753912003767,0.53306,3752.0,3751.9,1.3968]
[1753912003975,3.74082,3752.3,3752.2,1.5268]
[1753912004174,3.74082,3752.3,3752.2,3.8105]
[1753912004969,0.53302,3752.3,3752.2,3.8105]
[1753912005277,0.38,3752.7,3752.3,0.53302]
[1753912005478,0.91296,3752.7,3752.6,3.8105]
[1753912005666,1.54156,3752.7,3752.6,3.8105]
[1753912005865,1.93106,3752.7,3752.6,3.8105]
[1753912006267,0.38,3752.7,3752.6,3.8105]
[1753912007367,1.55112,3752.3,3752.2,2.6322]
[1753912007562,1.68392,3752.3,3752.2,0.6691]
[1753912008470,1.55112,3752.3,3752.2,3.0828]
[1753912008666,0.53302,3752.3,3752.2,0.6691]
[1753912008868,3.2078,3752.5,3752.4,3.8105]
[1753912009170,0.00813158,3752.6,3752.5,3.8105]
[1753912010568,1e-08,3752.6,3752.5,8.8105]
[1753912010868,0.38,3752.7,3752.5,8.8105]
[1753912010869,0.38,3752.7,3752.6,2.05978]
[1753912011272,0.38,3752.7,3752.6,9.34348]
[1753912012472,0.38,3752.7,3752.6,4.34348]
[1753912012674,0.38,3752.7,3752.6,23.04648]
[1753912013172,0.38,3752.7,3752.6,28.04648]
[1753912013674,3.2078,3753.4,3753.3,3.8105]
[1753912014671,3.2078,3753.4,3753.3,4.34338]
[1753912014975,0.9023,3753.9,3753.8,0.462]
[1753912015170,0.9023,3753.9,3753.8,3.0828]
[1753912015171,1.671,3753.9,3753.8,3.0828]
[1753912015470,0.9794,3754.0,3753.9,4.34329]
[1753912015675,1.1919,3754.0,3753.9,4.34329]
[1753912015974,0.9117,3754.4,3753.8,4.40257118]
[1753912016178,1.5581,3754.3,3754.2,1.0762]
[1753912016474,1.5581,3754.3,3754.2,3.0828]
[1753912016769,1.5581,3753.9,3753.8,3.8769]
[1753912017072,3.2078,3754.5,3754.2,0.6691]
[1753912017277,1.93852,3754.4,3754.3,0.6691]
[1753912017575,1.44449,3754.0,3753.9,0.6691]
[1753912017774,1.064,3754.0,3753.9,3.61559]
[1753912017972,1.4058,3754.1,3754.0,4.34326]
[1753912018174,2.09082,3754.4,3754.3,3.3485]
[1753912018374,1.5581,3754.4,3754.3,4.34323]
[1753912018574,1.1621,3754.4,3754.3,4.34323]
[1753912018877,0.4916,3754.6,3754.5,1.5287]
[1753912019178,1.1489,3754.6,3754.5,4.32851]
[1753912020076,3.2078,3754.9,3754.6,0.53269]
[1753912020277,4.7441,3754.9,3754.8,3.1084]
[1753912020467,4.178,3754.9,3754.8,4.32846]
[1753912020869,3.2078,3754.9,3754.8,4.32846]
[1753912021480,4.5951,3755.4,3755.3,3.7958]
[1753912023075,1.3873,3755.4,3755.3,3.7958]
[1753912023282,1.2757,3755.7,3755.6,2.219]
[1753912023482,1.7673,3755.7,3755.2,0.6903]
[1753912023680,1.80824,3755.7,3755.6,1.0489]
[1753912023882,1.80824,3755.7,3755.6,3.1084]
[1753912024184,1.80824,3755.7,3755.6,3.7958]
[1753912024372,3.19059071,3755.7,3755.6,3.7958]
[1753912025488,2.80319071,3755.7,3755.6,3.7958]
[1753912025687,3.19059071,3755.7,3755.6,3.7958]
[1753912026088,2.44884,3755.7,3755.6,3.7958]
[1753912026293,2.29984,3755.7,3755.6,3.7958]
[1753912026491,3.04164696,3755.7,3755.6,3.7958]
[1753912026686,3.19064696,3755.7,3755.6,3.7958]
[1753912026890,2.29984,3755.7,3755.6,3.7958]
[1753912027291,2.50903101,3755.7,3755.6,3.7958]
[1753912027994,1.77903101,3755.7,3755.6,3.7958]
[1753912028193,1.77903101,3755.7,3755.5,0.53256]
[1753912028393,2.27798739,3755.6,3755.5,1.42196]
[1753912028585,1.5363,3755.6,3755.5,1.42196]
[1753912029094,2.06885,3755.6,3755.5,3.1084]
[1753912029298,1.5363,3755.6,3755.5,3.1084]
[1753912029992,0.38,3755.7,3755.6,0.53255]
[1753912030298,0.38,3755.7,3755.6,4.32835]
[1753912031390,0.8586,3755.7,3755.6,1.22285]
[1753912031594,2.65441683,3755.7,3755.6,3.64095]
[1753912032098,2.65441683,3755.7,3755.6,4.32835]
[1753912032298,2.50541683,3755.7,3755.6,4.32835]
[1753912032601,2.65441683,3755.7,3755.6,4.32835]
[1753912032799,2.50541683,3755.7,3755.6,4.32835]
[1753912033400,2.50541683,3755.7,3755.6,3.64095]
[1753912033600,2.50541683,3755.7,3755.6,4.32835]
[1753912033801,2.65441683,3755.7,3755.6,4.32835]
[1753912034898,2.50541683,3755.7,3755.6,4.32835]
[1753912035202,2.65441683,3755.7,3755.6,4.32835]
[1753912035796,1.11811683,3755.7,3755.6,4.32835]
[1753912036101,1.60971683,3755.7,3755.6,4.32835]
[1753912036294,2.65441683,3755.7,3755.6,4.32835]
[1753912036897,1.11811683,3755.7,3755.6,4.32835]
[1753912037701,1.11811683,3755.7,3755.6,7.53615]
[1753912040301,0.94413141,3756.0,3755.8,0.53251]
[1753912040499,2.36863244,3757.1,3756.7,1.33099]
[1753912040705,3.51853244,3757.2,3757.1,3.2229]
[1753912040901,2.486,3757.2,3757.1,0.4485]
[1753912041102,2.486,3757.2,3757.1,1.0489]
[1753912041294,6.10868244,3757.7,3756.7,3.2078]
[1753912041295,0.9423,3756.8,3756.7,3.2078]
[1753912041500,3.8709,3756.4,3756.3,3.2078]
[1753912041705,2.0959,3756.0,3755.5,1.19477118]
[1753912041906,3.8709,3755.6,3755.5,2.24367118]
[1753912042998,3.8709,3755.6,3755.5,3.13307118]
[1753912044806,3.8709,3755.6,3755.5,1.9383]
[1753912045099,0.5325,3756.0,3755.6,1.42194]
[1753912045305,1.47475,3756.3,3756.2,1.0489]
[1753912045604,2.85965,3756.3,3756.2,2.6286]
[1753912045804,4.40335,3756.3,3756.2,2.6286]
[1753912046106,4.40339,3756.0,3755.9,1.9383]
[1753912046303,3.8709,3756.0,3755.9,1.9383]
[1753912046502,3.8709,3756.0,3755.9,2.6286]
[1753912046699,0.53251,3755.9,3755.7,3.2078]
[1753912046900,3.8709,3755.8,3755.7,3.2078]
[1753912047301,3.8709,3755.8,3755.7,6.36894]
[1753912047501,2.9483,3755.8,3755.7,6.36894]
[1753912048405,2.09588,3756.2,3756.1,1.0489]
[1753912048704,2.09588,3756.2,3756.1,2.8352]
[1753912048705,2.9483,3756.2,3756.1,2.8352]
[1753912048904,2.4241,3756.6,3756.3,1.718]
[1753912049100,2.4241,3756.6,3756.5,2.0565]
[1753912049101,4.0442,3756.6,3756.5,2.0565]
[1753912049301,4.0442,3756.6,3756.2,0.60687]
[1753912049499,2.4241,3756.5,3756.4,0.6119]
[1753912049708,4.0442,3756.5,3756.4,0.6119]
[1753912049898,4.0442,3756.5,3756.4,2.76]
[1753912050099,1.6657,3756.5,3756.4,2.9534]
[1753912050303,2.4113,3756.5,3756.4,2.9534]
[1753912050607,3.7402,3756.7,3756.6,2.9534]
[1753912050802,4.6948,3756.7,3756.6,2.9534]
[1753912051008,6.817,3756.7,3756.6,2.9534]
[1753912051410,7.7844,3756.7,3756.6,2.9534]
[1753912051610,7.7844,3756.7,3756.6,2.8344]
[1753912051909,7.7844,3756.7,3756.6,2.0565]
[1753912056307,1.713,3756.6,3756.4,1.47253]
[1753912056508,3.0768,3756.5,3756.4,3.48583]
[1753912057013,4.0442,3756.5,3756.4,3.48583]
[1753912060107,1.6657,3756.5,3756.4,0.53243]
[1753912060312,3.0768,3756.5,3756.4,3.48583]
[1753912061006,4.0442,3756.5,3756.4,3.48583]
[1753912062013,0.53242,3756.6,3756.4,1.84223]
[1753912062311,1.4567,3757.0,3756.6,2.2504]
[1753912062517,1.6201,3757.0,3756.9,1.2354]
[1753912062816,1.6201,3757.0,3756.9,2.9534]
[1753912063016,4.0442,3757.0,3756.9,2.9534]
[1753912064013,1.4567,3756.9,3756.8,0.53237]
[1753912064219,4.0442,3756.9,3756.8,0.53237]
[1753912065217,4.0442,3756.9,3756.8,1.64877]
[1753912065418,4.0442,3756.9,3756.8,3.36677]
[1753912066918,3.2078,3757.1,3757.0,3.48575]
[1753912067118,1.24342,3757.3,3757.0,1.76775]
[1753912067319,3.11982,3757.3,3757.2,2.9534]
[1753912067919,4.59377446,3757.3,3757.2,2.9534]
[1753912068316,4.59377446,3757.3,3757.2,2.1309]
[1753912068519,4.59377446,3757.3,3757.2,2.0565]
[1753912068817,4.59377446,3757.3,3757.2,0.6119]
[1753912069126,4.57654,3757.1,3757.0,2.58885]
[1753912070024,4.59379446,3757.1,3757.0,2.58885]
[1753912070324,4.59379446,3757.1,3757.0,2.0565]
[1753912070519,2.9015,3757.0,3756.9,0.53236]
[1753912070716,4.0442,3757.0,3756.9,0.53236]
[1753912070917,4.06145446,3757.0,3756.9,0.53236]
[1753912071121,3.09405446,3757.0,3756.9,0.53236]
[1753912071423,4.06145446,3757.0,3756.9,2.58886]
[1753912071622,4.06145446,3757.0,3756.9,3.36676]
[1753912072918,0.49465446,3757.0,3756.6,3.7402]
[1753912073126,4.0442,3756.7,3756.6,5.7967]
[1753912074126,4.06145446,3756.7,3756.6,5.7967]
[1753912074726,4.06145446,3756.7,3756.6,6.5746]
[1753912077428,4.06145446,3756.7,3756.6,6.6936]
[1753912078022,4.59384446,3756.7,3756.6,3.2078]
[1753912078220,4.06145446,3756.7,3756.6,3.2078]
[1753912078425,4.06145446,3756.7,3756.6,5.2643]
[1753912078622,4.06145446,3756.7,3756.6,6.0177]
[1753912078821,4.07825446,3756.7,3756.6,3.2078]
[1753912079421,4.03455446,3756.7,3756.6,4.2966]
[1753912079621,4.03455446,3756.7,3756.6,6.1133]
[1753912081121,0.01725446,3756.7,3756.6,6.1133]
[1753912081326,4.03455446,3756.7,3756.6,5.48700465]
[1753912081518,3.05035446,3756.7,3756.6,3.2078]
[1753912081718,4.54971,3756.6,3756.5,2.37566198]
[1753912081930,4.54978,3756.1,3756.0,3.35182011]
[1753912082132,4.56703446,3756.1,3756.0,3.35182011]
[1753912082323,2.15633446,3756.1,3755.9,0.5325]
[1753912082628,2.15633446,3756.1,3755.9,2.6072]
[1753912082629,4.0173,3756.0,3755.9,2.6072]
[1753912082829,4.0173,3756.0,3755.9,3.2867]
[1753912083133,4.03455446,3756.0,3755.9,2.7542]
[1753912083625,4.03455446,3756.0,3755.6,3.74034]
[1753912083832,4.0173,3755.7,3755.6,4.39820465]
[1753912084230,4.03455446,3755.7,3755.6,4.39820465]
[1753912084431,4.036928,3755.7,3755.6,4.39820465]
[1753912084932,4.03930154,3755.7,3755.6,4.39820465]
[1753912086232,4.03930154,3755.7,3755.6,6.01610465]
[1753912086531,4.04083695,3755.7,3755.6,6.47290465]
[1753912087128,4.04083695,3755.7,3755.6,3.26510465]
[1753912089632,0.53255,3755.6,3755.4,0.53256]
[1753912089935,4.0173,3755.5,3755.4,2.60726]
[1753912090230,4.0173,3755.5,3755.4,5.67736465]
[1753912090623,4.04083695,3755.5,3755.4,5.67736465]
[1753912091132,4.04083695,3755.5,3755.4,4.97236465]
[1753912091432,4.04083695,3755.5,3755.4,5.67736465]
[1753912092325,4.04083695,3755.5,3755.4,5.14480465]
[1753912092527,4.04083695,3755.5,3755.4,3.9544]
[1753912092733,4.04083695,3755.5,3755.4,5.14480465]
[1753912094429,0.02353695,3755.5,3755.4,5.14480465]
[1753912095631,2.40143695,3755.5,3755.4,5.14480465]
[1753912095834,0.02353695,3755.5,3755.4,5.14480465]
[1753912096229,3.05663695,3755.5,3755.4,5.14480465]
[1753912096428,4.04083695,3755.5,3755.4,5.14480465]
[1753912097629,1.6385,3755.4,3755.1,3.2078]
[1753912097830,0.6871,3755.1,3754.6,3.2078]
[1753912098025,3.35156,3754.8,3754.3,1.19040465]
[1753912098233,3.35159,3754.6,3754.5,0.952]
[1753912098436,3.35159,3754.6,3754.5,0.4568]
[1753912098633,3.37512695,3754.6,3754.5,0.4568]
[1753912099636,3.37512695,3754.6,3754.5,1.1618]
[1753912102539,3.37512695,3754.6,3754.5,3.9544]
[1753912104139,3.37512695,3754.6,3754.5,2.289]
[1753912104342,3.37512695,3754.6,3754.5,1.657]
[1753912105435,3.37512695,3754.6,3754.5,0.705]
[1753912105638,3.37512695,3754.6,3754.5,1.1618]
[1753912106246,21.96612695,3754.6,3754.5,1.657]
[1753912106447,0.53278,3754.0,3753.9,1.584]
[1753912106747,19.13531695,3754.0,3753.9,3.2494]
[1753912107045,19.13531695,3754.0,3753.9,3.9544]
[1753912108745,19.13331695,3754.0,3753.9,3.9544]
[1753912109441,22.22771695,3754.0,3753.9,4.0272]
[1753912110147,22.21471695,3754.0,3753.9,4.0272]
[1753912110347,3.65071695,3754.0,3753.9,4.0272]
[1753912110547,1.24391695,3754.0,3753.9,4.0272]
[1753912110748,19.11631695,3754.0,3753.9,4.0272]
[1753912110943,19.80391695,3754.0,3753.9,4.0272]
[1753912111344,19.11631695,3754.0,3753.9,4.0272]
[1753912111543,19.11631695,3754.0,3753.9,0.705]
[1753912111741,19.11631695,3754.0,3753.9,3.3111]
[1753912111943,19.11631695,3754.0,3753.9,4.0272]
[1753912112350,22.21071695,3754.0,3753.9,0.705]
[1753912112652,3.0944,3753.9,3753.8,2.05958975]
[1753912112845,3.11793695,3753.9,3753.8,3.72178975]
[1753912113045,3.11793695,3753.9,3753.8,4.49168975]
[1753912113545,0.02353695,3753.9,3753.8,4.49168975]
[1753912113851,0.02353695,3753.9,3753.8,5.6820944]
[1753912114039,3.2078,3754.7,3754.6,4.0921]
[1753912114243,21.7638,3754.7,3754.6,4.0921]
[1753912114452,22.29649,3754.7,3754.6,4.0921]
[1753912114646,3.74049,3754.7,3754.6,4.0921]
[1753912114950,22.29549,3754.7,3754.6,4.0921]
[1753912117150,3.74049,3754.7,3754.6,4.0921]
[1753912117355,22.29249,3754.7,3754.6,4.0921]
[1753912117649,22.29249,3754.7,3754.6,3.376]
[1753912117855,22.29249,3754.7,3754.6,4.0921]
[1753912119244,3.2078,3754.7,3754.6,4.0921]
[1753912119449,18.552,3754.7,3754.6,4.0921]